[Event "Titled Tuesday Blitz May 4 2021"]
[White "Arias, Juan Cruz"]
[Black "Carrasco Miranda, Andres"]
[WhiteFideId "118540"]
[BlackFideId "3405990"]
[WhiteElo "2083"]
[BlackElo "2177"]
[Result "1-0"]
[Round "01"]
[TimeControl "180+1"]
[Date "2021.05.04"]
[WhiteClock "0:00:09"]
[BlackClock "0:00:04"]

1. d4 {[%clk 0:02:58]}  Nf6 {[%clk 0:02:59]} 2. Nf3 {[%clk 0:02:56]}  g6 {[%clk 0:02:59]} 3. Bg5 {[%clk 0:02:27]}  Bg7 {[%clk 0:02:55]} 4. Nbd2 {[%clk 0:02:11]}  d5 {[%clk 0:02:53]} 5. e3 {[%clk 0:02:06]}  O-O {[%clk 0:02:52]} 6. Be2 {[%clk 0:02:04]}  c5 {[%clk 0:02:50]} 7. c3 {[%clk 0:02:02]}  Nc6 {[%clk 0:02:46]} 8. O-O {[%clk 0:01:59]}  Qb6 {[%clk 0:02:45]} 9. Qb3 {[%clk 0:01:42]}  c4 {[%clk 0:02:42]} 10. Qc2 {[%clk 0:01:40]}  Bf5 {[%clk 0:02:38]} 11. Qc1 {[%clk 0:01:40]}  Rac8 {[%clk 0:02:29]} 12. Bd1 {[%clk 0:01:39]}  Bd3 {[%clk 0:02:27]} 13. Re1 {[%clk 0:01:38]}  Ne4 {[%clk 0:02:27]} 14. Bf4 {[%clk 0:01:35]}  Rfe8 {[%clk 0:02:23]} 15. Bc2 {[%clk 0:01:34]}  Bxc2 {[%clk 0:02:16]} 16. Qxc2 {[%clk 0:01:33]}  Nxd2 {[%clk 0:02:17]} 17. Nxd2 {[%clk 0:01:32]}  e5 {[%clk 0:02:17]} 18. dxe5 {[%clk 0:01:32]}  Nxe5 {[%clk 0:02:18]} 19. Bxe5 {[%clk 0:01:32]}  Bxe5 {[%clk 0:02:19]} 20. Nf3 {[%clk 0:01:30]}  Bf6 {[%clk 0:02:19]} 21. Rad1 {[%clk 0:01:30]}  Rcd8 {[%clk 0:02:17]} 22. Rd2 {[%clk 0:01:30]}  Qe6 {[%clk 0:02:08]} 23. Red1 {[%clk 0:01:30]}  b5 {[%clk 0:02:08]} 24. Nd4 {[%clk 0:01:27]}  Qb6 {[%clk 0:02:03]} 25. a3 {[%clk 0:01:26]}  a6 {[%clk 0:01:58]} 26. Ne2 {[%clk 0:01:26]}  Qc5 {[%clk 0:00:58]} 27. Nf4 {[%clk 0:01:20]}  Re5 {[%clk 0:00:58]} 28. g3 {[%clk 0:01:15]}  Kg7 {[%clk 0:00:53]} 29. h4 {[%clk 0:01:14]}  Rf5 {[%clk 0:00:50]} 30. Rf1 {[%clk 0:01:09]}  Be5 {[%clk 0:00:49]} 31. Ne2 {[%clk 0:01:01]}  Rf3 {[%clk 0:00:39]} 32. Kg2 {[%clk 0:00:55]}  Rf6 {[%clk 0:00:37]} 33. Nd4 {[%clk 0:00:54]}  Re8 {[%clk 0:00:31]} 34. Qd1 {[%clk 0:00:53]}  Bb8 {[%clk 0:00:29]} 35. Qe2 {[%clk 0:00:49]}  Ba7 {[%clk 0:00:28]} 36. Rfd1 {[%clk 0:00:49]}  Re5 {[%clk 0:00:25]} 37. Qg4 {[%clk 0:00:43]}  Re4 {[%clk 0:00:20]} 38. Qh3 {[%clk 0:00:40]}  Qe7 {[%clk 0:00:18]} 39. Re2 {[%clk 0:00:33]}  Bxd4 {[%clk 0:00:17]} 40. Rxd4 {[%clk 0:00:33]}  Rxd4 {[%clk 0:00:17]} 41. cxd4 {[%clk 0:00:33]}  Qe4+ {[%clk 0:00:17]} 42. Kh2 {[%clk 0:00:32]}  Qd3 {[%clk 0:00:16]} 43. Qf1 {[%clk 0:00:29]}  a5 {[%clk 0:00:17]} 44. Qe1 {[%clk 0:00:29]}  b4 {[%clk 0:00:17]} 45. axb4 {[%clk 0:00:28]}  axb4 {[%clk 0:00:18]} 46. Rd2 {[%clk 0:00:29]}  Qf5 {[%clk 0:00:16]} 47. Re2 {[%clk 0:00:21]}  Qf3 {[%clk 0:00:14]} 48. Rd2 {[%clk 0:00:20]}  c3 {[%clk 0:00:14]} 49. bxc3 {[%clk 0:00:19]}  bxc3 {[%clk 0:00:15]} 50. Rc2 {[%clk 0:00:20]}  Rc6 {[%clk 0:00:13]} 51. Kg1 {[%clk 0:00:19]}  g5 {[%clk 0:00:07]} 52. hxg5 {[%clk 0:00:18]}  Rg6 {[%clk 0:00:07]} 53. Qe2 {[%clk 0:00:12]}  Qf5 {[%clk 0:00:07]} 54. Rxc3 {[%clk 0:00:12]}  Rxg5 {[%clk 0:00:08]} 55. Qf1 {[%clk 0:00:11]}  Qf3 {[%clk 0:00:06]} 56. Rc1 {[%clk 0:00:09]}  Rh5 {[%clk 0:00:05]} 57. Qg2 {[%clk 0:00:10]}  Qf6 {[%clk 0:00:06]} 58. Rf1 {[%clk 0:00:10]}  Rf5 {[%clk 0:00:05]} 59. g4 {[%clk 0:00:10]}  Rf3 {[%clk 0:00:06]} 60. Rb1 {[%clk 0:00:08]}  h5 {[%clk 0:00:06]} 61. g5 {[%clk 0:00:07]}  Qf5 {[%clk 0:00:06]} 62. g6 {[%clk 0:00:08]}  fxg6 {[%clk 0:00:06]} 63. Rb7+ {[%clk 0:00:08]}  Kh6 {[%clk 0:00:07]} 64. Rb8 {[%clk 0:00:08]}  Kg7 {[%clk 0:00:06]} 65. Rb7+ {[%clk 0:00:08]}  Kh6 {[%clk 0:00:06]} 66. Rb6 {[%clk 0:00:09]}  h4 {[%clk 0:00:04]} 67. Kh2 {[%clk 0:00:08]}  h3 {[%clk 0:00:03]} 68. Rxg6+ {[%clk 0:00:07]}  Qxg6 {[%clk 0:00:03]} 69. Qxf3 {[%clk 0:00:07]}  Qe4 {[%clk 0:00:04]} 70. Qxh3+ {[%clk 0:00:07]}  Kg6 {[%clk 0:00:04]} 71. Qg2+ {[%clk 0:00:08]}  Kf5 {[%clk 0:00:03]} 72. Qxe4+ {[%clk 0:00:08]}  Kxe4 {[%clk 0:00:04]} 73. Kg3 {[%clk 0:00:09]} 1-0


[Site "https://www.chess.com"]

[Event "Titled Tuesday Blitz May 4 2021"]
[White "AwareIdea"]
[Black "Kanyamarala, Trisha"]
[BlackFideId "45004722"]
[WhiteElo "2520"]
[BlackElo "2074"]
[Result "0-1"]
[Round "01"]
[TimeControl "180+1"]
[Date "2021.05.04"]
[WhiteClock "0:00:10"]
[BlackClock "0:00:24"]

1. d4 {[%clk 0:03:00]}  Nf6 {[%clk 0:02:56]} 2. c4 {[%clk 0:02:59]}  e6 {[%clk 0:02:55]} 3. g3 {[%clk 0:02:59]}  d5 {[%clk 0:02:53]} 4. Bg2 {[%clk 0:02:58]}  dxc4 {[%clk 0:02:53]} 5. Nf3 {[%clk 0:02:57]}  Nc6 {[%clk 0:02:52]} 6. O-O {[%clk 0:02:55]}  a6 {[%clk 0:02:52]} 7. a4 {[%clk 0:02:54]}  Rb8 {[%clk 0:02:51]} 8. Qc2 {[%clk 0:02:52]}  b5 {[%clk 0:02:47]} 9. Rd1 {[%clk 0:02:49]}  Bb7 {[%clk 0:02:42]} 10. Nc3 {[%clk 0:02:29]}  Nb4 {[%clk 0:02:31]} 11. Qb1 {[%clk 0:02:26]}  Be7 {[%clk 0:02:18]} 12. axb5 {[%clk 0:02:25]}  axb5 {[%clk 0:02:18]} 13. Ra7 {[%clk 0:02:20]}  O-O {[%clk 0:02:01]} 14. h3 {[%clk 0:01:50]}  c6 {[%clk 0:01:44]} 15. Ne5 {[%clk 0:01:49]}  Qb6 {[%clk 0:01:42]} 16. Ra1 {[%clk 0:01:46]}  Rfd8 {[%clk 0:01:40]} 17. Be3 {[%clk 0:01:36]}  Nbd5 {[%clk 0:01:38]} 18. Bg5 {[%clk 0:01:28]}  h6 {[%clk 0:01:31]} 19. Bc1 {[%clk 0:01:17]}  Bd6 {[%clk 0:01:21]} 20. Nf3 {[%clk 0:01:04]}  c5 {[%clk 0:01:10]} 21. Nxd5 {[%clk 0:00:47]}  Bxd5 {[%clk 0:01:04]} 22. Be3 {[%clk 0:00:43]}  Be4 {[%clk 0:00:56]} 23. Qc1 {[%clk 0:00:41]}  Nd5 {[%clk 0:00:54]} 24. dxc5 {[%clk 0:00:36]}  Bxc5 {[%clk 0:00:53]} 25. Bxc5 {[%clk 0:00:24]}  Qxc5 {[%clk 0:00:54]} 26. e3 {[%clk 0:00:18]}  Nb4 {[%clk 0:00:50]} 27. Qc3 {[%clk 0:00:13]}  Nd3 {[%clk 0:00:44]} 28. Nd4 {[%clk 0:00:13]}  Bxg2 {[%clk 0:00:41]} 29. Kxg2 {[%clk 0:00:14]}  Qd5+ {[%clk 0:00:37]} 30. Kg1 {[%clk 0:00:14]}  b4 {[%clk 0:00:35]} 31. Qc2 {[%clk 0:00:14]}  e5 {[%clk 0:00:34]} 32. Ne2 {[%clk 0:00:13]}  Qf3 {[%clk 0:00:31]} 33. Ra7 {[%clk 0:00:11]}  Qxf2+ {[%clk 0:00:29]} 34. Kh1 {[%clk 0:00:11]}  Qf3+ {[%clk 0:00:28]} 35. Kg1 {[%clk 0:00:11]}  Qxe3+ {[%clk 0:00:28]} 36. Kh2 {[%clk 0:00:11]}  Qxa7 {[%clk 0:00:28]} 37. Qxc4 {[%clk 0:00:11]}  Qf2+ {[%clk 0:00:28]} 38. Kh1 {[%clk 0:00:11]}  Qxe2 {[%clk 0:00:28]} 39. Rg1 {[%clk 0:00:10]}  Nf2+ {[%clk 0:00:26]} 40. Kg2 {[%clk 0:00:10]}  Ne4+ {[%clk 0:00:26]} 41. Kh1 {[%clk 0:00:10]}  Qxc4 {[%clk 0:00:24]} 0-1


[Site "https://www.chess.com"]

[Event "Titled Tuesday Blitz May 4 2021"]
[White "Bach, Matthias"]
[Black "Shapiro, David"]
[WhiteFideId "4603168"]
[BlackFideId "24133523"]
[WhiteElo "2213"]
[BlackElo "2261"]
[Result "0-1"]
[Round "01"]
[TimeControl "180+1"]
[Date "2021.05.04"]
[WhiteClock "0:01:07"]
[BlackClock "0:02:14"]

1. d4 {[%clk 0:03:00]}  d5 {[%clk 0:02:50]} 2. c4 {[%clk 0:02:59]}  e6 {[%clk 0:02:49]} 3. Nc3 {[%clk 0:02:58]}  c6 {[%clk 0:02:48]} 4. e4 {[%clk 0:02:57]}  dxe4 {[%clk 0:02:48]} 5. Nxe4 {[%clk 0:02:56]}  Bb4+ {[%clk 0:02:49]} 6. Bd2 {[%clk 0:02:57]}  Qxd4 {[%clk 0:02:48]} 7. Bxb4 {[%clk 0:02:57]}  Qxe4+ {[%clk 0:02:48]} 8. Be2 {[%clk 0:02:57]}  Na6 {[%clk 0:02:48]} 9. Ba3 {[%clk 0:02:57]}  Ne7 {[%clk 0:02:40]} 10. Nf3 {[%clk 0:02:55]}  Bd7 {[%clk 0:02:38]} 11. O-O {[%clk 0:02:53]}  c5 {[%clk 0:02:34]} 12. Bd3 {[%clk 0:02:38]}  Qf4 {[%clk 0:02:34]} 13. Re1 {[%clk 0:02:26]}  O-O-O {[%clk 0:02:25]} 14. Re4 {[%clk 0:02:21]}  Qc7 {[%clk 0:02:22]} 15. Ne5 {[%clk 0:02:02]}  Be8 {[%clk 0:02:20]} 16. Qe2 {[%clk 0:01:41]}  Ng6 {[%clk 0:02:18]} 17. Qe3 {[%clk 0:01:08]}  Nxe5 {[%clk 0:02:14]} 18. Rxe5 {[%clk 0:01:07]}  Rxd3 {[%clk 0:02:14]} 0-1


[Site "https://www.chess.com"]

[Event "Titled Tuesday Blitz May 4 2021"]
[White "Balaji, Aaravamudhan"]
[Black "Juhasz, Agoston"]
[WhiteFideId "436224"]
[BlackFideId "778346"]
[WhiteElo "2085"]
[BlackElo "2211"]
[Result "1-0"]
[Round "01"]
[TimeControl "180+1"]
[Date "2021.05.04"]
[WhiteClock "0:00:04"]
[BlackClock "0:00:02"]

1. d4 {[%clk 0:03:00]}  Nf6 {[%clk 0:02:57]} 2. c4 {[%clk 0:03:01]}  e6 {[%clk 0:02:56]} 3. Nc3 {[%clk 0:03:02]}  Bb4 {[%clk 0:02:56]} 4. a3 {[%clk 0:03:02]}  Bxc3+ {[%clk 0:02:55]} 5. bxc3 {[%clk 0:03:03]}  O-O {[%clk 0:02:50]} 6. f3 {[%clk 0:03:02]}  d5 {[%clk 0:02:50]} 7. cxd5 {[%clk 0:03:03]}  Nxd5 {[%clk 0:02:40]} 8. c4 {[%clk 0:03:00]}  Nf6 {[%clk 0:02:34]} 9. e4 {[%clk 0:02:58]}  Nc6 {[%clk 0:02:28]} 10. Be3 {[%clk 0:02:57]}  e5 {[%clk 0:02:27]} 11. d5 {[%clk 0:02:56]}  Ne7 {[%clk 0:02:27]} 12. Bd3 {[%clk 0:02:55]}  Ng6 {[%clk 0:02:25]} 13. Ne2 {[%clk 0:02:55]}  Nh5 {[%clk 0:02:23]} 14. g3 {[%clk 0:02:48]}  b6 {[%clk 0:01:48]} 15. O-O {[%clk 0:02:36]}  Bh3 {[%clk 0:01:37]} 16. Rf2 {[%clk 0:02:36]}  Qe7 {[%clk 0:01:30]} 17. Qd2 {[%clk 0:02:25]}  Rad8 {[%clk 0:01:22]} 18. g4 {[%clk 0:01:59]}  Nhf4 {[%clk 0:01:11]} 19. Bxf4 {[%clk 0:01:06]}  exf4 {[%clk 0:01:12]} 20. Kh1 {[%clk 0:01:05]}  Qh4 {[%clk 0:00:55]} 21. Nd4 {[%clk 0:01:04]}  Qf6 {[%clk 0:00:47]} 22. Qb2 {[%clk 0:00:55]}  Ne5 {[%clk 0:00:38]} 23. Be2 {[%clk 0:00:51]}  c5 {[%clk 0:00:30]} 24. Nc2 {[%clk 0:00:33]}  Nxg4 {[%clk 0:00:21]} 25. Qxf6 {[%clk 0:00:33]}  Nxf2+ {[%clk 0:00:19]} 26. Kg1 {[%clk 0:00:32]}  gxf6 {[%clk 0:00:20]} 27. Kxf2 {[%clk 0:00:33]}  Kh8 {[%clk 0:00:19]} 28. Rg1 {[%clk 0:00:25]}  Rg8 {[%clk 0:00:19]} 29. Ne1 {[%clk 0:00:26]}  Rxg1 {[%clk 0:00:19]} 30. Kxg1 {[%clk 0:00:26]}  Rg8+ {[%clk 0:00:19]} 31. Kf2 {[%clk 0:00:27]}  Bd7 {[%clk 0:00:19]} 32. Nd3 {[%clk 0:00:27]}  f5 {[%clk 0:00:16]} 33. Ne5 {[%clk 0:00:19]}  Be8 {[%clk 0:00:15]} 34. exf5 {[%clk 0:00:17]}  Rg5 {[%clk 0:00:14]} 35. Bd3 {[%clk 0:00:17]}  Kg7 {[%clk 0:00:14]} 36. d6 {[%clk 0:00:16]}  Kf6 {[%clk 0:00:03]} 37. d7 {[%clk 0:00:17]}  Bxd7 {[%clk 0:00:03]} 38. Nxd7+ {[%clk 0:00:18]}  Ke7 {[%clk 0:00:04]} 39. Ne5 {[%clk 0:00:17]}  Rg8 {[%clk 0:00:04]} 40. Nc6+ {[%clk 0:00:17]}  Kd6 {[%clk 0:00:04]} 41. Nxa7 {[%clk 0:00:18]}  Ra8 {[%clk 0:00:03]} 42. Nb5+ {[%clk 0:00:18]}  Ke5 {[%clk 0:00:04]} 43. Be4 {[%clk 0:00:18]}  Ra5 {[%clk 0:00:04]} 44. Kg2 {[%clk 0:00:14]}  f6 {[%clk 0:00:04]} 45. Kh3 {[%clk 0:00:14]}  Ra4 {[%clk 0:00:04]} 46. Bd5 {[%clk 0:00:13]}  Ra5 {[%clk 0:00:02]} 47. Kg4 {[%clk 0:00:12]}  Ra4 {[%clk 0:00:02]} 48. h4 {[%clk 0:00:10]}  h6 {[%clk 0:00:01]} 49. Be6 {[%clk 0:00:09]}  Ra5 {[%clk 0:00:01]} 50. Kh5 {[%clk 0:00:09]}  Ra8 {[%clk 0:00:02]} 51. Kg6 {[%clk 0:00:07]}  Rh8 {[%clk 0:00:02]} 52. h5 {[%clk 0:00:08]}  Re8 {[%clk 0:00:02]} 53. Kxh6 {[%clk 0:00:07]}  Rd8 {[%clk 0:00:03]} 54. Kg6 {[%clk 0:00:08]}  Rd3 {[%clk 0:00:04]} 55. Bd5 {[%clk 0:00:07]}  Rd1 {[%clk 0:00:05]} 56. h6 {[%clk 0:00:07]}  Rg1+ {[%clk 0:00:05]} 57. Kf7 {[%clk 0:00:08]}  Rh1 {[%clk 0:00:05]} 58. Kg7 {[%clk 0:00:09]}  Rg1+ {[%clk 0:00:06]} 59. Kh8 {[%clk 0:00:09]}  Rg3 {[%clk 0:00:04]} 60. h7 {[%clk 0:00:08]}  Rg1 {[%clk 0:00:04]} 61. Nc7 {[%clk 0:00:05]}  Kd6 {[%clk 0:00:05]} 62. Ne8+ {[%clk 0:00:05]}  Ke7 {[%clk 0:00:05]} 63. Ng7 {[%clk 0:00:05]}  Kf8 {[%clk 0:00:04]} 64. Ne6+ {[%clk 0:00:05]}  Ke7 {[%clk 0:00:05]} 65. Ng7 {[%clk 0:00:03]}  Kf8 {[%clk 0:00:04]} 66. Nh5 {[%clk 0:00:04]}  Ke7 {[%clk 0:00:03]} 67. a4 {[%clk 0:00:04]}  Rg5 {[%clk 0:00:02]} 68. Nxf4 {[%clk 0:00:05]}  Rxf5 {[%clk 0:00:02]} 69. Kg7 {[%clk 0:00:05]}  Rxf4 {[%clk 0:00:02]} 70. h8=Q {[%clk 0:00:04]} 1-0


[Site "https://www.chess.com"]

[Event "Titled Tuesday Blitz May 4 2021"]
[White "Banawa, Joel"]
[Black "Pein, Jonathan"]
[WhiteFideId "2024055"]
[BlackFideId "417092"]
[WhiteElo "2657"]
[BlackElo "2167"]
[Result "1/2-1/2"]
[Round "01"]
[TimeControl "180+1"]
[Date "2021.05.04"]
[WhiteClock "0:00:08"]
[BlackClock "0:00:21"]

1. e4 {[%clk 0:03:00]}  d5 {[%clk 0:02:54]} 2. exd5 {[%clk 0:03:00]}  Qxd5 {[%clk 0:02:55]} 3. Nf3 {[%clk 0:03:00]}  Nf6 {[%clk 0:02:50]} 4. Nc3 {[%clk 0:02:59]}  Qd6 {[%clk 0:02:48]} 5. d4 {[%clk 0:03:00]}  e6 {[%clk 0:02:48]} 6. Nb5 {[%clk 0:02:58]}  Qd8 {[%clk 0:02:46]} 7. Bf4 {[%clk 0:02:58]}  Nd5 {[%clk 0:02:46]} 8. Bg3 {[%clk 0:02:58]}  a6 {[%clk 0:02:47]} 9. Nc3 {[%clk 0:02:56]}  Bb4 {[%clk 0:02:46]} 10. Qd3 {[%clk 0:02:57]}  c5 {[%clk 0:02:44]} 11. a3 {[%clk 0:02:56]}  Qa5 {[%clk 0:02:41]} 12. Rc1 {[%clk 0:01:47]}  Bxc3+ {[%clk 0:02:36]} 13. bxc3 {[%clk 0:01:47]}  cxd4 {[%clk 0:02:31]} 14. Nxd4 {[%clk 0:01:33]}  Qxc3+ {[%clk 0:02:25]} 15. Qxc3 {[%clk 0:01:33]}  Nxc3 {[%clk 0:02:26]} 16. Bd3 {[%clk 0:01:33]}  Bd7 {[%clk 0:02:23]} 17. O-O {[%clk 0:01:32]}  Nc6 {[%clk 0:02:23]} 18. Nb3 {[%clk 0:01:32]}  O-O {[%clk 0:02:20]} 19. Nc5 {[%clk 0:01:32]}  Bc8 {[%clk 0:02:19]} 20. Rfe1 {[%clk 0:01:31]}  b6 {[%clk 0:02:11]} 21. Nb3 {[%clk 0:01:31]}  Bb7 {[%clk 0:02:09]} 22. Nd2 {[%clk 0:01:28]}  Ne7 {[%clk 0:01:47]} 23. Nc4 {[%clk 0:01:26]}  Ned5 {[%clk 0:01:42]} 24. Nd6 {[%clk 0:01:26]}  Bc6 {[%clk 0:01:42]} 25. f4 {[%clk 0:01:16]}  g6 {[%clk 0:01:36]} 26. Rf1 {[%clk 0:01:02]}  Rfd8 {[%clk 0:01:36]} 27. Nc4 {[%clk 0:01:02]}  Bb5 {[%clk 0:01:32]} 28. Bh4 {[%clk 0:00:54]}  f6 {[%clk 0:01:27]} 29. Rfe1 {[%clk 0:00:51]}  Kf7 {[%clk 0:01:26]} 30. Bg3 {[%clk 0:00:29]}  Rac8 {[%clk 0:01:26]} 31. Nb2 {[%clk 0:00:27]}  Bxd3 {[%clk 0:01:18]} 32. Nxd3 {[%clk 0:00:28]}  h5 {[%clk 0:01:08]} 33. h3 {[%clk 0:00:23]}  Na2 {[%clk 0:01:07]} 34. Rb1 {[%clk 0:00:23]}  Rxc2 {[%clk 0:01:06]} 35. Bf2 {[%clk 0:00:23]}  Nac3 {[%clk 0:01:04]} 36. Rb3 {[%clk 0:00:23]}  Ne2+ {[%clk 0:01:02]} 37. Kf1 {[%clk 0:00:21]}  Nexf4 {[%clk 0:01:01]} 38. Nxf4 {[%clk 0:00:22]}  Nxf4 {[%clk 0:01:02]} 39. Rxb6 {[%clk 0:00:22]}  Nd3 {[%clk 0:00:48]} 40. Rb7+ {[%clk 0:00:20]}  Kf8 {[%clk 0:00:44]} 41. Bb6 {[%clk 0:00:20]}  Rd6 {[%clk 0:00:24]} 42. Rd1 {[%clk 0:00:20]}  e5 {[%clk 0:00:20]} 43. Ba5 {[%clk 0:00:14]}  Rd4 {[%clk 0:00:17]} 44. Rb8+ {[%clk 0:00:13]}  Kf7 {[%clk 0:00:17]} 45. Rb7+ {[%clk 0:00:12]}  Ke6 {[%clk 0:00:17]} 46. Rb6+ {[%clk 0:00:12]}  Kf5 {[%clk 0:00:17]} 47. Rxa6 {[%clk 0:00:12]}  Rf2+ {[%clk 0:00:16]} 48. Kg1 {[%clk 0:00:11]}  Ra2 {[%clk 0:00:16]} 49. Bb6 {[%clk 0:00:11]}  Rd6 {[%clk 0:00:15]} 50. a4 {[%clk 0:00:11]}  e4 {[%clk 0:00:12]} 51. Ra5+ {[%clk 0:00:10]}  Ke6 {[%clk 0:00:11]} 52. Be3 {[%clk 0:00:09]}  f5 {[%clk 0:00:11]} 53. Ra8 {[%clk 0:00:07]}  f4 {[%clk 0:00:11]} 54. Bc1 {[%clk 0:00:04]}  Ra1 {[%clk 0:00:11]} 55. Rc8 {[%clk 0:00:02]}  Nxc1 {[%clk 0:00:11]} 56. Rdxc1 {[%clk 0:00:02]}  Rxa4 {[%clk 0:00:08]} 57. Re8+ {[%clk 0:00:02]}  Kf5 {[%clk 0:00:08]} 58. Rc5+ {[%clk 0:00:03]}  Kf6 {[%clk 0:00:09]} 59. Rf8+ {[%clk 0:00:03]}  Kg7 {[%clk 0:00:09]} 60. Rxf4 {[%clk 0:00:04]}  Re6 {[%clk 0:00:09]} 61. Rc7+ {[%clk 0:00:03]}  Kg8 {[%clk 0:00:06]} 62. Rf1 {[%clk 0:00:02]}  Ra8 {[%clk 0:00:06]} 63. Re1 {[%clk 0:00:02]}  Rae8 {[%clk 0:00:06]} 64. Rc2 {[%clk 0:00:02]}  e3 {[%clk 0:00:07]} 65. Rce2 {[%clk 0:00:03]}  Kf7 {[%clk 0:00:08]} 66. Kh2 {[%clk 0:00:04]}  Kf6 {[%clk 0:00:08]} 67. Kg3 {[%clk 0:00:05]}  g5 {[%clk 0:00:09]} 68. Kf3 {[%clk 0:00:05]}  Kg6 {[%clk 0:00:10]} 69. Rxe3 {[%clk 0:00:06]}  Rf8+ {[%clk 0:00:10]} 70. Kg3 {[%clk 0:00:06]}  Rxe3+ {[%clk 0:00:11]} 71. Rxe3 {[%clk 0:00:05]}  Rf6 {[%clk 0:00:12]} 72. Re5 {[%clk 0:00:06]}  h4+ {[%clk 0:00:13]} 73. Kh2 {[%clk 0:00:05]}  Rf4 {[%clk 0:00:13]} 74. Re8 {[%clk 0:00:05]}  Rf6 {[%clk 0:00:13]} 75. Kg1 {[%clk 0:00:05]}  Kf5 {[%clk 0:00:14]} 76. Re2 {[%clk 0:00:05]}  Kg6 {[%clk 0:00:14]} 77. Re3 {[%clk 0:00:05]}  Rf5 {[%clk 0:00:15]} 78. g3 {[%clk 0:00:06]}  hxg3 {[%clk 0:00:15]} 79. Rxg3 {[%clk 0:00:07]}  Kh5 {[%clk 0:00:16]} 80. Rc3 {[%clk 0:00:07]}  Rf4 {[%clk 0:00:16]} 81. Kg2 {[%clk 0:00:06]}  Rf5 {[%clk 0:00:17]} 82. Kg3 {[%clk 0:00:06]}  Ra5 {[%clk 0:00:16]} 83. Re3 {[%clk 0:00:07]}  Rb5 {[%clk 0:00:15]} 84. Ra3 {[%clk 0:00:07]}  Rc5 {[%clk 0:00:15]} 85. Rd3 {[%clk 0:00:07]}  Rb5 {[%clk 0:00:15]} 86. Kf3 {[%clk 0:00:06]}  Rb1 {[%clk 0:00:15]} 87. Ke4 {[%clk 0:00:06]}  Re1+ {[%clk 0:00:15]} 88. Kf5 {[%clk 0:00:06]}  Rf1+ {[%clk 0:00:16]} 89. Ke5 {[%clk 0:00:07]}  Rf8 {[%clk 0:00:16]} 90. Ke4 {[%clk 0:00:06]}  Kh4 {[%clk 0:00:17]} 91. Rd5 {[%clk 0:00:04]}  Rf4+ {[%clk 0:00:17]} 92. Ke3 {[%clk 0:00:05]}  Rf8 {[%clk 0:00:15]} 93. Ke2 {[%clk 0:00:04]}  Rg8 {[%clk 0:00:15]} 94. Kf2 {[%clk 0:00:04]}  Kxh3 {[%clk 0:00:14]} 95. Rd3+ {[%clk 0:00:05]}  Kg4 {[%clk 0:00:14]} 96. Rd4+ {[%clk 0:00:05]}  Kh5 {[%clk 0:00:15]} 97. Kg3 {[%clk 0:00:05]}  Re8 {[%clk 0:00:15]} 98. Rd3 {[%clk 0:00:05]}  Re4 {[%clk 0:00:15]} 99. Rb3 {[%clk 0:00:05]}  Rc4 {[%clk 0:00:15]} 100. Ra3 {[%clk 0:00:05]}  Rg4+ {[%clk 0:00:15]} 101. Kh3 {[%clk 0:00:05]}  Rf4 {[%clk 0:00:16]} 102. Kg3 {[%clk 0:00:05]}  Rh4 {[%clk 0:00:17]} 103. Ra8 {[%clk 0:00:05]}  Rf4 {[%clk 0:00:18]} 104. Rh8+ {[%clk 0:00:05]}  Kg6 {[%clk 0:00:18]} 105. Rg8+ {[%clk 0:00:06]}  Kf5 {[%clk 0:00:19]} 106. Rf8+ {[%clk 0:00:06]}  Ke5 {[%clk 0:00:20]} 107. Rg8 {[%clk 0:00:07]}  Kf5 {[%clk 0:00:20]} 108. Rf8+ {[%clk 0:00:07]}  Ke5 {[%clk 0:00:21]} 109. Rg8 {[%clk 0:00:08]}  Kf5 {[%clk 0:00:21]} 1/2-1/2


[Site "https://www.chess.com"]

[Event "Titled Tuesday Blitz May 4 2021"]
[White "Baradaran, Arman"]
[Black "Oliveira, Silvio Eduardo"]
[WhiteFideId "880515"]
[BlackFideId "2111560"]
[WhiteElo "2132"]
[BlackElo "2302"]
[Result "0-1"]
[Round "01"]
[TimeControl "180+1"]
[Date "2021.05.04"]
[WhiteClock "0:00:10"]
[BlackClock "0:00:13"]

1. d4 {[%clk 0:02:58]}  Nf6 {[%clk 0:02:59]} 2. c4 {[%clk 0:02:57]}  e6 {[%clk 0:03:00]} 3. g3 {[%clk 0:02:58]}  d5 {[%clk 0:03:01]} 4. Nf3 {[%clk 0:02:58]}  Be7 {[%clk 0:03:01]} 5. Bg2 {[%clk 0:02:59]}  O-O {[%clk 0:03:02]} 6. O-O {[%clk 0:03:00]}  dxc4 {[%clk 0:03:02]} 7. Qc2 {[%clk 0:03:00]}  a6 {[%clk 0:03:02]} 8. a4 {[%clk 0:03:01]}  Bd7 {[%clk 0:03:02]} 9. Qxc4 {[%clk 0:03:01]}  Bc6 {[%clk 0:03:02]} 10. Bf4 {[%clk 0:03:00]}  Bd6 {[%clk 0:03:02]} 11. Nc3 {[%clk 0:02:54]}  Nbd7 {[%clk 0:03:02]} 12. Qd3 {[%clk 0:02:48]}  Bxf4 {[%clk 0:02:51]} 13. gxf4 {[%clk 0:02:49]}  a5 {[%clk 0:02:39]} 14. Rfd1 {[%clk 0:02:34]}  Nd5 {[%clk 0:02:33]} 15. e3 {[%clk 0:02:18]}  Nb4 {[%clk 0:02:30]} 16. Qe2 {[%clk 0:02:16]}  Nf6 {[%clk 0:02:29]} 17. e4 {[%clk 0:02:07]}  Nh5 {[%clk 0:02:21]} 18. Qd2 {[%clk 0:01:52]}  Qf6 {[%clk 0:02:21]} 19. d5 {[%clk 0:01:37]}  exd5 {[%clk 0:02:15]} 20. exd5 {[%clk 0:01:16]}  Rad8 {[%clk 0:02:15]} 21. Nd4 {[%clk 0:01:13]}  Bxd5 {[%clk 0:01:53]} 22. Nxd5 {[%clk 0:01:12]}  Nxd5 {[%clk 0:01:52]} 23. Ne2 {[%clk 0:01:07]}  Ndxf4 {[%clk 0:01:49]} 24. Qe3 {[%clk 0:01:06]}  Rde8 {[%clk 0:01:38]} 25. Nxf4 {[%clk 0:01:03]}  Nxf4 {[%clk 0:01:27]} 26. Qf3 {[%clk 0:00:59]}  Re2 {[%clk 0:01:17]} 27. Re1 {[%clk 0:00:49]}  Rfe8 {[%clk 0:01:11]} 28. Rxe2 {[%clk 0:00:47]}  Rxe2 {[%clk 0:01:12]} 29. Rd1 {[%clk 0:00:43]}  g5 {[%clk 0:01:05]} 30. h4 {[%clk 0:00:30]}  Rxb2 {[%clk 0:00:49]} 31. Kh2 {[%clk 0:00:19]}  h6 {[%clk 0:00:30]} 32. Rc1 {[%clk 0:00:11]}  c6 {[%clk 0:00:28]} 33. Rc5 {[%clk 0:00:09]}  Qd6 {[%clk 0:00:26]} 34. Rf5 {[%clk 0:00:03]}  Ng6+ {[%clk 0:00:24]} 35. Qg3 {[%clk 0:00:01]}  Qxg3+ {[%clk 0:00:21]} 36. fxg3 {[%clk 0:00:02]}  gxh4 {[%clk 0:00:21]} 37. Rf3 {[%clk 0:00:02]}  hxg3+ {[%clk 0:00:19]} 38. Rxg3 {[%clk 0:00:02]}  Kf8 {[%clk 0:00:20]} 39. Kg1 {[%clk 0:00:03]}  Nf4 {[%clk 0:00:19]} 40. Bf1 {[%clk 0:00:03]}  Ne2+ {[%clk 0:00:18]} 41. Bxe2 {[%clk 0:00:02]}  Rxe2 {[%clk 0:00:19]} 42. Rb3 {[%clk 0:00:02]}  Re4 {[%clk 0:00:18]} 43. Rxb7 {[%clk 0:00:02]}  Rxa4 {[%clk 0:00:19]} 44. Rb8+ {[%clk 0:00:03]}  Kg7 {[%clk 0:00:18]} 45. Rb6 {[%clk 0:00:04]}  Rc4 {[%clk 0:00:18]} 46. Ra6 {[%clk 0:00:04]}  a4 {[%clk 0:00:18]} 47. Kf2 {[%clk 0:00:05]}  h5 {[%clk 0:00:18]} 48. Ke3 {[%clk 0:00:06]}  Rc3+ {[%clk 0:00:18]} 49. Kd4 {[%clk 0:00:06]}  Rg3 {[%clk 0:00:16]} 50. Rxc6 {[%clk 0:00:06]}  a3 {[%clk 0:00:16]} 51. Ra6 {[%clk 0:00:07]}  h4 {[%clk 0:00:15]} 52. Ra5 {[%clk 0:00:07]}  h3 {[%clk 0:00:15]} 53. Rh5 {[%clk 0:00:06]}  a2 {[%clk 0:00:15]} 54. Ra5 {[%clk 0:00:07]}  Rg2 {[%clk 0:00:15]} 55. Ke3 {[%clk 0:00:07]}  h2 {[%clk 0:00:15]} 56. Rh5 {[%clk 0:00:07]}  a1=Q {[%clk 0:00:14]} 57. Rg5+ {[%clk 0:00:07]}  Rxg5 {[%clk 0:00:14]} 58. Kf4 {[%clk 0:00:08]}  Qe5+ {[%clk 0:00:15]} 59. Kf3 {[%clk 0:00:08]}  Rg3+ {[%clk 0:00:14]} 60. Kf2 {[%clk 0:00:09]}  Qf4+ {[%clk 0:00:14]} 61. Ke1 {[%clk 0:00:09]}  h1=Q+ {[%clk 0:00:14]} 62. Ke2 {[%clk 0:00:10]}  Qh2+ {[%clk 0:00:14]} 63. Ke1 {[%clk 0:00:10]}  Rg1# {[%clk 0:00:13]} 0-1


[Site "https://www.chess.com"]